bitfinex/quotes_ETHUSD_20260121
["timestamp","ask_amount","ask_price","bid_price","bid_amount"]
[1768965962007,4.12212914,2974.1,2973.7,5.09436229]
[1768965962206,3.45493728,2974.1,2973.7,5.09436229]
[1768965962893,3.45493728,2974.1,2973.7,5.64936229]
[1768965963425,4.13666183,2974.1,2973.7,5.64936229]
[1768965963731,4.13666183,2974.1,2973.7,5.10200479]
[1768965964326,7.49902357,2974.1,2973.7,1.73396528]
[1768965964529,4.28198569,2974.0,2973.7,0.40737602]
[1768965964699,4.28198569,2974.0,2973.7,0.26406098]
[1768965964900,5.42290988,2973.9,2973.7,0.1207411]
[1768965965125,5.42290988,2973.9,2973.7,0.5454461]
[1768965965434,5.42290988,2973.9,2973.7,0.36302638]
[1768965965604,5.42290988,2973.9,2973.7,0.20666038]
[1768965965924,8.78758729,2973.9,2973.7,0.18059882]
[1768965966098,0.87875873,2973.8,2973.5,5.09436229]
[1768965966298,7.6466631,2973.9,2973.5,5.09436229]
[1768965966738,4.33499082,2973.8,2973.3,6.20436229]
[1768965966900,4.33499082,2973.8,2973.3,0.809939]
[1768965967435,4.33499082,2973.8,2973.3,5.90430129]
[1768965967595,4.33499082,2973.8,2973.3,6.45930129]
[1768965967798,1.25912643,2973.7,2973.3,6.45930129]
[1768965968019,1.25912643,2973.7,2973.4,5.09436229]
[1768965969430,8.92892752,2973.7,2973.3,1.364939]
[1768965970048,5.56604928,2973.7,2973.3,1.364939]
[1768965970232,5.56604928,2973.7,2973.3,7.01430129]
[1768965970550,0.89288048,2973.6,2973.3,7.01430129]
[1768965972730,0.89288048,2973.6,2973.3,7.56930129]
[1768965973409,4.25581785,2973.6,2973.3,7.56930129]
[1768965974446,4.25581785,2973.6,2973.3,2.474939]
[1768965974646,0.89288048,2973.6,2973.3,2.474939]
[1768965974945,0.89288048,2973.6,2973.3,7.56930129]
[1768965975150,0.89288048,2973.6,2973.3,8.12430129]
[1768965977869,0.89288048,2973.6,2973.3,8.67930129]
[1768965979359,4.93950561,2973.5,2973.3,1e-08]
[1768965979560,4.02774373,2973.4,2972.7,3.79662894]
[1768965979755,5.16109184,2973.2,2972.7,3.79662894]
[1768965979956,0.57160918,2973.2,2972.7,3.79662894]
[1768965980365,0.57160918,2973.2,2972.7,4.35162894]
[1768965981149,3.93505633,2973.2,2972.7,4.35162894]
[1768965982483,9.09614817,2973.2,2972.7,4.35162894]
[1768965982699,9.09614817,2973.2,2972.7,4.90662894]
[1768965982851,9.48970214,2973.1,2972.7,4.90662894]
[1768965983175,6.12620666,2973.1,2972.7,4.90662894]
[1768965984078,6.12620666,2973.1,2972.7,1.11]
[1768965984281,5.16109184,2973.0,2972.6,5.71556794]
[1768965984579,1.8403293,2972.9,2972.6,5.71556794]
[1768965985069,5.20408676,2972.9,2972.6,6.27056794]
[1768965985252,1.8403293,2972.9,2972.6,6.27056794]
[1768965985576,0.555,2972.9,2972.6,6.27056794]
[1768965986482,5.21109184,2973.4,2972.6,6.27056794]
[1768965986658,7.28161653,2973.3,2972.6,6.27056794]
[1768965987042,5.16109184,2973.2,2972.6,6.27056794]
[1768965987446,8.52448648,2973.2,2972.6,6.27056794]
[1768965987658,8.52448648,2973.2,2972.7,5.16056794]
[1768965987860,5.16109184,2973.2,2972.7,5.16056794]
[1768965988070,8.52452171,2973.2,2972.7,5.16056794]
[1768965988380,9.77379799,2973.2,2972.7,5.16056794]
[1768965988764,6.41036812,2973.2,2972.7,5.16056794]
[1768965988960,9.77376127,2973.2,2972.7,5.16056794]
[1768965990080,5.16109184,2973.1,2972.6,6.82556794]
[1768965990386,0.002,2973.0,2972.7,5.16056794]
[1768965992683,0.002,2973.0,2972.7,5.71556794]
[1768965995163,0.002,2973.0,2972.7,6.27056794]
[1768965997775,0.002,2973.0,2972.7,6.82556794]
[1768966000376,0.002,2973.0,2972.7,7.38056794]
[1768966000577,0.556,2972.9,2972.7,7.38056794]
[1768966002212,0.556,2972.9,2972.7,2.22]
[1768966002400,0.556,2972.9,2972.7,1.99617251]
[1768966002615,0.556,2972.9,2972.7,2.35740623]
[1768966002777,0.556,2972.9,2972.7,2.21208152]
[1768966002975,0.002,2972.8,2972.7,2.19592025]
[1768966003372,0.002,2972.8,2972.7,7.35648819]
[1768966005180,0.002,2972.8,2972.7,7.91148819]
[1768966007704,0.002,2972.8,2972.7,8.46648819]
[1768966010016,0.002,2972.8,2972.7,9.02148819]
[1768966012326,0.002,2972.8,2972.7,3.86092025]
[1768966012504,0.002,2972.8,2972.7,4.41592025]
[1768966015548,0.002,2972.8,2972.7,4.97092025]
[1768966016242,0.002,2972.8,2972.7,1.00959826]
[1768966017942,0.002,2972.8,2972.7,1.56459826]
[1768966019150,4.64167109,2972.7,2972.1,3.55340503]
[1768966019313,4.64167109,2972.7,2972.0,2.22]
[1768966019515,9.53685274,2972.5,2972.0,6.78200303]
[1768966019855,4.64167109,2972.1,2971.4,6.78200303]
[1768966020011,4.64167109,2971.9,2971.4,6.78200303]
[1768966020847,4.64167109,2971.8,2971.3,2.22]
[1768966021147,4.94518165,2971.9,2971.0,3.33]
[1768966021148,4.64167109,2971.5,2971.0,3.33]
[1768966021335,4.64167109,2971.3,2971.0,3.33]
[1768966021507,4.64167109,2971.2,2970.7,4.56200303]
[1768966022145,4.64167109,2971.1,2970.7,4.56200303]
[1768966022735,4.64167109,2971.1,2970.7,5.11700303]
[1768966023340,4.64167109,2971.1,2970.7,0.555]
[1768966023548,5.19767109,2971.1,2970.7,0.555]
[1768966024806,5.19767109,2971.1,2970.7,5.11700303]
[1768966025311,0.556,2971.1,2970.7,5.67200303]
[1768966027617,0.556,2971.1,2970.8,4.56200303]
[1768966027842,0.556,2971.1,2970.9,0.001]
[1768966028047,0.556,2971.0,2970.8,4.56200303]
[1768966029082,0.556,2971.0,2970.7,1.665]
[1768966029388,5.19767109,2971.0,2970.7,1.665]
[1768966029558,4.64167109,2971.0,2970.7,1.665]
[1768966029960,4.64167109,2971.0,2970.7,2.22]
[1768966030156,0.556,2971.1,2970.7,6.78200303]
[1768966030478,0.556,2971.1,2970.8,4.56200303]
[1768966032301,4.64167109,2971.3,2970.8,4.56200303]
[1768966032471,6.16716974,2971.6,2971.0,4.56200303]
[1768966032672,4.64167109,2972.2,2971.1,4.56200303]
[1768966032886,0.556,2972.0,2971.3,4.56200303]
[1768966033045,5.19767109,2972.0,2971.3,4.56200303]
[1768966033481,4.64167109,2971.9,2971.3,4.56200303]
[1768966034064,4.64167109,2971.9,2971.1,4.56200303]
[1768966034281,4.64167109,2971.8,2970.9,5.06800303]
[1768966034865,4.64167109,2971.8,2970.9,5.62300303]
[1768966035286,4.2103716,2971.6,2970.9,5.11700303]
[1768966035490,4.2103716,2971.4,2970.9,5.11700303]
[1768966037168,4.2103716,2971.4,2970.9,5.67200303]
[1768966037398,4.2103716,2971.4,2971.0,4.21905789]
[1768966039711,0.556,2971.7,2971.0,4.21905789]
[1768966039878,0.556,2971.8,2971.0,4.77405789]
[1768966040069,0.556,2971.9,2971.0,4.80771659]
[1768966040395,0.556,2971.9,2971.2,4.21905789]
[1768966040568,0.002,2971.4,2971.2,4.21905789]
[1768966041407,0.05,2972.2,2971.2,4.21905789]
[1768966041576,0.556,2972.0,2971.2,4.21905789]
[1768966041778,0.556,2972.2,2971.3,4.77505789]
[1768966041979,4.2103716,2972.4,2971.5,4.21905789]
[1768966042503,0.556,2972.3,2971.5,4.77405789]
[1768966043003,0.002,2972.6,2971.9,4.21905789]
[1768966043190,0.002,2972.8,2971.9,4.21905789]
[1768966043384,0.002,2972.8,2972.1,4.21905789]
[1768966044578,4.2123716,2972.8,2972.1,4.21905789]
[1768966045011,4.2123716,2972.8,2972.1,4.77405789]
[1768966045783,0.002,2972.8,2972.1,4.77405789]
[1768966047515,4.2123716,2972.8,2972.2,4.21905789]
[1768966049824,4.2123716,2972.8,2972.2,4.77405789]
[1768966052125,4.2123716,2972.8,2972.3,4.21905789]
[1768966052322,5.02577745,2972.8,2972.3,4.21905789]
[1768966053207,0.002,2972.6,2972.3,4.21905789]
[1768966053730,0.002,2972.8,2972.3,4.21905789]
[1768966054743,0.002,2972.8,2972.3,4.77405789]
[1768966055051,0.002,2972.8,2972.4,4.21905789]
[1768966057116,0.002,2972.8,2972.4,4.77405789]
[1768966059746,0.002,2972.8,2972.4,5.32905789]
[1768966060329,4.2123716,2972.8,2972.4,1.11]
[1768966060549,4.63160876,2972.7,2972.4,1.11]
[1768966062450,4.63160876,2972.7,2972.4,1.665]
[1768966065352,0.42123716,2972.7,2972.4,2.22]
[1768966065553,0.42123716,2972.7,2972.6,0.001]
[1768966068049,0.42123716,2972.7,2972.6,0.556]
[1768966069561,3.45720387,2972.8,2972.6,0.556]
[1768966070458,3.45720387,2972.8,2972.6,1.111]
[1768966072735,3.45720387,2972.8,2972.6,1.666]
[1768966072933,0.556,2972.9,2972.6,5.11317761]
[1768966073270,4.01120387,2972.9,2972.6,1.666]
[1768966075132,3.45520387,2972.9,2972.6,1.666]
[1768966075334,4.01120387,2972.9,2972.6,2.221]
[1768966076555,3.45520387,2972.9,2972.6,2.221]
[1768966077374,3.45520387,2972.9,2972.8,0.001]
[1768966078161,3.45520387,2972.9,2972.8,0.556]
[1768966078360,0.002,2973.0,2972.8,4.00317761]
[1768966078938,0.002,2973.0,2972.8,0.556]
[1768966080373,3.45720387,2973.0,2972.8,0.556]
[1768966080577,3.45720387,2973.0,2972.8,1.111]
[1768966083181,3.45720387,2973.0,2972.8,1.666]
[1768966084574,4.13727933,2972.9,2972.8,1.666]
[1768966085242,3.45520387,2972.9,2972.8,1.666]
[1768966085574,3.45520387,2972.9,2972.8,2.221]
[1768966088377,3.45520387,2972.9,2972.8,2.776]
[1768966089594,3.45720387,2973.0,2972.8,2.776]
[1768966091088,3.45720387,2973.0,2972.8,3.331]
[1768966092595,3.45720387,2973.0,2972.8,3.281]
[1768966092796,3.85872426,2973.0,2972.8,3.281]
[1768966093568,3.85872426,2973.0,2972.8,3.836]
[1768966095980,3.85872426,2973.0,2972.8,4.391]
[1768966098002,0.002,2973.2,2972.8,4.391]
[1768966098300,0.556,2973.1,2972.9,2.84556276]
[1768966098504,0.002,2973.2,2972.9,2.84556276]
[1768966098799,0.002,2973.2,2972.8,7.79156276]
[1768966099006,2.74457373,2973.2,2972.8,7.79156276]
[1768966099504,0.002,2973.2,2972.9,2.84556276]
[1768966099670,0.002,2973.2,2973.0,2.84556276]
[1768966101003,0.002,2973.2,2973.0,3.40056276]
[1768966103511,0.002,2973.2,2973.0,3.95556276]
[1768966104006,0.002,2973.2,2973.1,2.84556276]
[1768966105704,0.002,2973.2,2973.1,3.40056276]
[1768966106086,0.002,2973.2,2973.1,0.555]
[1768966108210,0.002,2973.2,2973.1,1.11]
[1768966110918,0.002,2973.2,2973.1,1.665]
[1768966113412,0.002,2973.2,2973.1,2.22]
[1768966113816,0.556,2973.6,2973.2,2.84556276]
[1768966114418,3.29857373,2973.6,2973.2,2.84556276]
[1768966115823,0.556,2973.6,2973.2,3.40056276]
[1768966116001,3.30057373,2973.8,2973.3,2.84556276]
[1768966118021,3.30057373,2973.8,2973.2,3.40056276]
[1768966118196,3.30057373,2973.8,2973.2,3.95556276]
[1768966121207,3.30057373,2973.8,2973.2,4.51056276]
[1768966123512,3.30057373,2973.8,2973.2,5.06556276]
[1768966124447,3.30057373,2973.8,2973.4,0.001]
[1768966124650,2.74257373,2973.6,2973.4,0.001]
[1768966127111,2.74257373,2973.6,2973.4,0.556]
[1768966129456,2.74257373,2973.6,2973.4,1.111]
[1768966131754,2.74257373,2973.6,2973.4,1.666]
[1768966134262,0.557,2973.8,2973.4,2.221]
[1768966134263,2.26400547,2973.7,2973.4,2.221]
[1768966136266,2.26400547,2973.7,2973.6,0.001]
[1768966136665,2.26400547,2973.7,2973.6,0.556]
[1768966137372,0.002,2973.8,2973.6,0.556]
[1768966139273,0.002,2973.8,2973.6,1.111]
[1768966140174,2.26600547,2973.8,2973.6,1.111]
[1768966141468,2.26400547,2973.7,2973.6,1.111]
[1768966141786,2.26400547,2973.7,2973.6,1.666]
[1768966144186,2.26600547,2973.8,2973.6,2.221]
[1768966144778,0.002,2973.8,2973.6,2.221]
[1768966144989,2.26600547,2973.8,2973.6,2.221]
[1768966145586,2.26600547,2973.8,2973.2,2.22]
[1768966145587,2.26400547,2973.7,2973.2,2.22]
[1768966145798,2.26400547,2973.7,2973.1,1.108]
[1768966145972,2.26400547,2973.5,2973.1,1.108]
[1768966146371,2.26400547,2973.5,2973.1,1.663]
[1768966146571,2.54590602,2973.5,2973.1,1.663]
[1768966147391,2.26400547,2973.5,2973.1,1.663]
[1768966147690,2.26400547,2973.5,2973.1,3.9287555]
[1768966148877,2.26400547,2973.5,2973.1,4.4837555]
[1768966149866,2.26400547,2973.5,2973.1,2.218]
[1768966151269,2.26400547,2973.5,2973.1,2.773]
[1768966152515,0.555,2973.6,2973.1,5.0387555]
[1768966152815,2.26400547,2973.5,2973.1,2.773]
[1768966153701,2.26400547,2973.5,2973.1,3.328]
[1768966156114,2.26400547,2973.5,2973.1,3.883]
[1768966159204,2.26400547,2973.5,2973.1,4.438]
[1768966161500,2.26400547,2973.5,2973.1,4.993]
[1768966163808,2.88239318,2973.5,2973.1,4.943]
[1768966164012,0.557,2973.6,2973.1,5.498]
[1768966164013,1.89803427,2973.4,2973.1,5.498]
[1768966166299,1.89803427,2973.4,2973.1,6.053]
[1768966168627,1.89803427,2973.4,2973.1,6.608]
[1768966169742,5.26123945,2973.4,2973.1,6.48707102]
[1768966169899,1.89803427,2973.2,2972.8,4.946]
[1768966171707,1.89803427,2973.2,2972.8,5.501]
[1768966171909,5.26141478,2973.2,2972.8,5.501]
[1768966172109,1.89803427,2973.1,2972.8,5.501]
[1768966174638,1.89803427,2973.1,2972.8,6.056]
[1768966177722,1.89803427,2973.1,2972.8,6.611]
[1768966180865,1.89803427,2973.1,2972.8,7.166]
[1768966182267,1.89803427,2973.1,2973.0,0.001]
[1768966182467,2.51041263,2973.1,2972.8,7.166]
[1768966182669,1.89803427,2973.1,2972.8,7.166]
[1768966183766,1.89803427,2973.1,2972.8,7.721]
[1768966186673,1.67813238,2973.2,2972.8,8.276]
[1768966189160,1.67813238,2973.2,2972.8,8.831]
[1768966192175,1.67813238,2973.2,2972.8,9.386]
[1768966193774,1.67813238,2973.2,2973.0,0.001]
[1768966193986,2.75801035,2973.2,2973.0,0.001]
[1768966194486,2.76001035,2973.2,2973.0,0.556]
[1768966197760,2.76001035,2973.2,2973.0,1.111]
[1768966200696,2.76001035,2973.2,2973.0,1.666]
[1768966201993,1.08187797,2973.2,2973.0,1.666]
[1768966202401,1.67813238,2973.1,2973.0,1.666]
[1768966202702,2.09597663,2973.1,2972.8,9.386]
[1768966203007,1.67813238,2973.1,2972.8,9.386]
[1768966203294,1.67813238,2973.1,2972.8,9.941]
[1768966204280,1.67813238,2972.9,2972.6,1.797778]
[1768966204480,1.67813238,2972.9,2972.2,2.8121045]
[1768966204481,1.67813238,2972.6,2972.1,0.8379945]
[1768966204791,0.556,2972.9,2972.2,1.7021045]
[1768966204792,0.65731425,2972.5,2972.2,1.7021045]
[1768966205105,2.23413238,2972.9,2972.2,1.7021045]
[1768966205294,1.67813238,2972.8,2972.2,1.7021045]
[1768966205615,1.67813238,2972.8,2972.6,0.555]
[1768966205915,1.67813238,2972.8,2972.3,1.7021045]
[1768966206314,1.67813238,2972.8,2972.2,1.7021045]
[1768966206488,2.23791811,2972.7,2972.2,1.7021045]
[1768966207986,2.23791811,2972.7,2972.2,2.2571045]
[1768966210519,2.23791811,2972.7,2972.2,2.8121045]
[1768966211418,2.23791811,2972.7,2972.3,1.7021045]
[1768966211587,1.67813238,2972.7,2972.3,1.7021045]
[1768966212391,1.67813238,2972.7,2972.2,1.11]
[1768966212787,1.67813238,2972.6,2972.2,1.665]
[1768966213003,1.67813238,2972.4,2972.1,0.8379945]
[1768966215223,1.67813238,2972.4,2972.1,1.3929945]
[1768966215523,1.63148156,2972.3,2972.1,1.3929945]
[1768966217785,1.63148156,2972.3,2972.1,1.9479945]
[1768966220329,1.63148156,2972.3,2972.1,2.5029945]
[1768966220526,1.63148156,2972.3,2972.1,2e-08]
[1768966223335,1.63148156,2972.3,2972.1,0.55500002]
[1768966223530,2.27628292,2972.3,2972.1,0.55500002]
[1768966225836,2.27628292,2972.3,2972.1,1.11000002]
[1768966226039,2.18748156,2972.5,2972.1,1.11000002]
[1768966226242,5.55165778,2972.5,2972.1,1.11000002]
[1768966226543,1.63148156,2972.4,2972.1,1.11000002]
[1768966228516,1.63148156,2972.4,2972.1,1.66500002]
[1768966230548,0.002,2972.2,2972.1,1.66500002]
[1768966231138,0.002,2972.2,2972.1,2.22000002]
[1768966233632,0.002,2972.2,2972.1,2.77500002]
[1768966235025,0.002,2972.2,2971.8,1.5960724]
[1768966235353,0.002,2972.2,2971.8,0.63678715]
[1768966235744,1.63348156,2972.2,2971.8,0.63678715]
[1768966236655,1.63348156,2972.2,2971.8,1.19178715]
[1768966238863,1.63348156,2972.2,2971.8,1.111]
[1768966239069,1.63348156,2972.2,2971.8,1.666]
[1768966240074,1.46565232,2972.6,2971.9,0.16805493]
[1768966240236,1.46565232,2972.6,2971.9,0.84141557]
[1768966240435,1.63148156,2972.5,2971.9,0.16805493]
[1768966241565,1.63148156,2972.5,2971.9,0.90320147]
[1768966242034,1.63148156,2972.5,2971.9,0.555]
[1768966243470,0.002,2972.0,2971.9,0.505]
[1768966243653,1.69151535,2971.8,2971.0,0.555]
[1768966243861,0.89166894,2971.8,2971.2,0.01114058]
[1768966244239,0.89166894,2971.8,2971.1,0.556]
[1768966244867,1.63148156,2971.7,2971.2,0.02294053]
[1768966245068,1.63148156,2971.7,2971.1,0.65065685]
[1768966245267,1.79351983,2971.6,2971.1,0.556]
[1768966245671,1.76192467,2971.4,2971.1,0.556]
[1768966246373,1.76192467,2971.4,2971.1,1.111]
[1768966249188,1.76192467,2971.4,2971.1,1.666]
[1768966250198,1.76192467,2971.4,2971.1,0.77433106]
[1768966251769,1.76192467,2971.4,2971.1,1.32933106]
[1768966254305,3.39890945,2971.6,2971.1,1.88433106]
[1768966254306,0.0336624,2971.6,2971.1,1.88433106]
[1768966254605,1.76192467,2971.6,2971.2,0.24505441]
[1768966255083,1.76392467,2972.0,2971.3,0.253322]
[1768966255285,1.76392467,2972.0,2971.4,0.809322]
[1768966255976,1.76392467,2972.0,2971.5,0.26145105]
[1768966256177,0.002,2972.2,2971.6,0.25945105]
[1768966256399,1.76192467,2972.6,2971.7,0.25745105]
[1768966256706,1.76192467,2972.6,2971.9,0.25745105]
[1768966257212,0.002,2972.7,2971.9,0.22381615]
[1768966257396,1.76392467,2972.7,2971.9,0.22381615]
[1768966259098,1.76392467,2972.7,2972.0,0.24801264]
[1768966261925,0.002,2972.9,2972.2,0.27041816]
[1768966262091,0.002,2972.9,2972.4,0.27041816]
[1768966264116,0.002,2972.9,2972.5,0.28601047]
[1768966266604,0.002,2972.9,2972.6,0.3010445]
[1768966267607,0.002,2972.7,2972.6,0.30636867]
[1768966267928,0.002,2973.4,2972.7,0.30636867]
[1768966268096,0.002,2973.4,2972.9,0.3135664]
[1768966269099,0.002,2973.4,2973.0,0.3207722]
[1768966269336,1.76392467,2973.4,2972.9,0.555]
[1768966269534,1.79558707,2973.3,2972.9,0.555]
[1768966270415,1.79558707,2973.3,2972.5,0.555]
[1768966270416,1.76192467,2973.0,2972.5,0.555]
[1768966271830,1.76192467,2973.0,2972.5,1.11]
[1768966272032,1.76192467,2972.8,2972.5,1.11]
[1768966274330,1.76192467,2972.8,2972.5,1.665]
[1768966275432,1.76192467,2972.8,2972.5,1.6313651]
[1768966276843,1.76192467,2972.8,2972.5,2.1863651]
[1768966279158,1.76192467,2972.8,2972.5,2.7413651]
[1768966279353,1.94686156,2972.6,2972.5,2.7413651]
[1768966279946,1.94686156,2972.6,2971.9,0.555]
[1768966279947,1.94686156,2972.6,2971.2,0.1913117]
[1768966280155,1.94686156,2972.4,2971.4,1.111]
[1768966280837,1.94686156,2972.6,2971.6,1.111]
[1768966281039,1.94686156,2972.5,2971.6,1.111]
[1768966281247,1.94686156,2972.5,2971.4,0.01681035]
[1768966281451,1.94686156,2972.4,2971.3,0.556]
[1768966281631,1.94686156,2972.2,2971.4,1.21693238]
[1768966284035,1.94686156,2972.2,2971.4,0.555]
[1768966284237,1.94686156,2972.2,2971.5,1.2321557]
[1768966285570,1.94686156,2972.1,2971.4,0.555]
[1768966285738,1.94686156,2971.9,2971.4,0.555]
[1768966286760,1.94686156,2971.9,2971.4,1.11]
[1768966288270,1.94686156,2971.8,2971.4,1.11]
[1768966289343,1.94686156,2971.8,2971.4,1.665]
[1768966289858,2.96780706,2972.0,2971.4,1.665]
[1768966290061,1.41194193,2972.5,2971.6,4.89805379]
[1768966290258,1.94686156,2972.8,2971.7,1.35859016]
[1768966290464,1.94686156,2973.0,2971.9,1.34178434]
[1768966290665,1.94686156,2973.0,2971.9,1.35857997]
[1768966290863,0.002,2972.2,2972.1,1.34178434]
[1768966291065,0.002,2972.4,2972.1,1.35858677]
[1768966291370,1.41194193,2973.3,2972.3,1.35989277]
[1768966291585,0.002,2973.4,2972.5,1.35989277]
[1768966291786,1.94886156,2973.4,2972.5,1.35989277]
[1768966291965,1.98890239,2973.3,2972.5,1.35989277]
[1768966292169,1.94686156,2973.3,2972.5,1.35989277]
[1768966292884,1.98890239,2973.3,2972.5,1.35989277]
[1768966293298,1.94686156,2972.7,2972.3,0.555]
[1768966293800,1.94686156,2972.7,2972.3,0.5213651]
[1768966293987,1.94686156,2972.5,2972.3,0.5213651]
[1768966294292,1.94686156,2972.5,2972.3,1.0763651]
[1768966296799,1.94686156,2973.3,2972.4,1.45702487]
[1768966297455,1.94686156,2973.2,2972.4,1.45702487]
[1768966297660,1.94686156,2973.2,2972.4,1.76754235]
[1768966298800,1.94886156,2973.4,2972.4,1.76754235]
[1768966298986,1.94886156,2973.4,2972.4,1.78432497]
[1768966299192,1.94686156,2973.3,2972.6,1.51180988]
[1768966300302,1.94686156,2973.3,2972.6,1.80682076]
[1768966301891,1.94686156,2973.3,2972.7,1.56436024]
[1768966302407,1.94686156,2973.3,2972.7,1.53071174]
[1768966302899,1.94886156,2973.2,2972.7,1.53071174]
[1768966304714,1.94886156,2973.2,2972.7,2.08571174]
[1768966306981,1.94886156,2973.2,2972.7,2.64071174]
[1768966308313,2.27142518,2973.1,2972.7,1.11]
[1768966309778,2.27142518,2973.1,2972.7,1.665]
[1768966311814,2.27142518,2973.1,2972.7,1.6313651]
[1768966312613,2.27142518,2973.1,2972.7,2.1863651]
[1768966314354,2.27142518,2973.1,2972.7,2.1363651]
[1768966314537,2.27142518,2973.1,2972.6,0.555]
[1768966314538,2.27142518,2972.9,2972.6,0.555]
[1768966314704,2.27342518,2972.9,2972.6,0.555]
[1768966315104,2.27342518,2972.9,2972.6,1.11]
[1768966315506,2.27342518,2972.9,2972.4,0.555]
[1768966315818,2.27142518,2972.7,2972.4,0.53339835]
[1768966316137,2.27142518,2972.7,2972.3,0.70066005]
[1768966316502,2.27142518,2972.6,2972.3,0.70066005]
[1768966316817,2.27142518,2972.6,2972.3,0.67059886]
[1768966317022,6.72791652,2972.7,2971.9,2.67876571]
[1768966317023,2.27142518,2972.4,2971.9,2.67876571]
[1768966317440,2.27142518,2972.4,2971.9,3.23376571]
[1768966319914,2.27142518,2972.4,2971.9,3.78876571]
[1768966320133,2.27142518,2972.4,2971.9,3.75511721]
[1768966322539,2.27142518,2972.4,2971.9,4.31011721]
[1768966322738,2.89134468,2972.3,2971.9,4.31011721]
[1768966324147,2.27142518,2972.2,2971.9,1.665]
[1768966324355,2.27142518,2972.1,2971.6,0.556]
[1768966324723,2.27142518,2972.1,2971.9,0.555]
[1768966325365,3.98433864,2972.3,2971.9,0.555]
[1768966325366,2.27142518,2972.2,2971.9,0.555]
[1768966325847,0.6199195,2972.3,2971.9,2.67776571]
[1768966326156,2.89134468,2972.3,2971.9,2.67776571]
[1768966326453,2.27142518,2972.2,2971.9,0.555]
[1768966327051,2.27142518,2972.2,2972.1,0.001]
[1768966327253,2.27142518,2972.2,2971.9,1.11]
[1768966329983,2.27142518,2972.2,2971.9,1.665]
[1768966330288,2.27142518,2972.2,2971.9,1.6313571]
[1768966331496,2.89699055,2972.2,2971.9,1.6313571]
[1768966331808,2.27142518,2972.1,2971.6,2.67876571]
[1768966332482,2.27142518,2972.1,2971.6,3.23376571]
[1768966334299,2.27142518,2972.1,2971.7,2.12276571]
[1768966334500,2.27142518,2972.4,2971.7,2.44614228]
[1768966334666,2.27142518,2972.4,2971.7,2.12276571]
[1768966334867,2.27142518,2972.4,2971.8,2.12276571]
[1768966335888,2.60263148,2972.3,2971.8,2.12276571]
[1768966337411,2.60263148,2972.3,2971.8,2.67776571]
[1768966338111,2.60263148,2972.3,2971.8,2.64411721]
[1768966338611,2.60263148,2972.7,2971.9,2.61275072]
[1768966338814,4.01657341,2972.9,2972.1,2.61275072]
[1768966339131,0.002,2972.9,2972.2,2.61275072]
[1768966339697,0.002,2972.9,2972.3,2.61275072]
[1768966339882,0.002,2972.9,2972.5,2.61275072]
[1768966342319,0.002,2972.9,2972.5,3.16775072]
[1768966344623,0.002,2972.9,2972.6,2.61275072]
[1768966346991,0.002,2972.9,2972.6,3.16775072]
[1768966347592,2.60463148,2972.9,2972.6,0.555]
[1768966347821,0.002,2972.9,2972.6,3.16775072]
[1768966348534,0.002,2972.9,2972.6,3.13410782]
[1768966349402,0.002,2972.9,2972.7,2.61275072]
[1768966350202,0.002,2972.9,2972.8,0.556]
[1768966350405,0.002,2972.9,2972.8,3.16875072]
[1768966351104,0.002,2972.9,2972.8,0.556]
[1768966352041,0.002,2972.9,2972.8,1.111]
[1768966354555,0.002,2972.9,2972.8,1.666]
[1768966354922,2.60463148,2972.9,2972.8,1.666]
[1768966355911,0.002,2972.9,2972.8,1.666]
[1768966356133,0.002,2972.9,2972.8,1.6236717]
[1768966356938,0.002,2972.9,2972.8,2.1786717]
[1768966359327,0.002,2972.9,2972.8,2.7336717]
[1768966361746,0.002,2972.9,2972.8,3.2886717]
[1768966364317,0.002,2972.9,2972.8,3.8436717]
[1768966366547,0.002,2972.9,2972.8,3.7857774]
[1768966366743,0.002,2972.9,2972.8,4.3407774]
[1768966369645,0.002,2972.9,2972.8,4.8957774]
[1768966372038,0.002,2972.9,2972.8,5.4507774]
[1768966373833,2.69155519,2972.9,2972.8,5.4507774]
[1768966374648,2.69155519,2972.9,2972.8,6.0057774]
[1768966375156,2.96091071,2972.9,2972.8,2.262329]
[1768966376955,2.96091071,2972.9,2972.8,1.706329]
[1768966377126,2.96091071,2972.9,2972.8,2.817329]
[1768966379648,2.96091071,2972.9,2972.8,3.372329]
[1768966381358,0.002,2973.2,2973.0,2.86093799]
[1768966381559,0.002,2973.4,2973.1,4.89707017]
[1768966381762,2.69155519,2973.8,2973.2,3.41693799]
[1768966382259,0.002,2973.8,2973.2,3.41693799]
[1768966384543,0.002,2973.8,2973.3,2.86093799]
[1768966384749,2.69155519,2973.8,2973.3,2.86093799]
[1768966385147,2.68955519,2973.7,2973.3,2.86093799]
[1768966386185,2.68955519,2973.7,2973.2,1.111]
[1768966386674,2.69155519,2973.6,2973.2,0.555]
[1768966386882,2.68955519,2973.4,2973.2,0.555]
[1768966387083,2.69155519,2973.4,2973.3,0.556]
[1768966387373,2.69155519,2973.4,2973.1,1.111]
[1768966387374,3.75155517,2973.2,2973.1,1.111]
[1768966387944,2.68955519,2973.1,2972.8,2.816329]
[1768966388138,2.68955519,2972.9,2972.8,2.816329]
[1768966389200,2.68955519,2972.9,2972.6,1.6323571]
[1768966389380,2.68955519,2972.9,2972.7,0.555]
[1768966391844,2.68955519,2972.9,2972.7,1.11]
[1768966393084,2.68955519,2972.9,2972.2,0.556]
[1768966393085,2.68955519,2972.8,2972.2,0.556]
[1768966393249,2.95851071,2972.8,2972.2,0.556]
[1768966393883,2.95851071,2972.8,2972.2,3.41693799]
[1768966394365,2.95851071,2972.8,2972.2,3.97193799]
[1768966395858,3.05122296,2972.7,2972.2,1.111]
[1768966396186,3.71962488,2972.6,2972.2,1.111]
[1768966396699,4.46516489,2973.4,2972.4,3.23336178]
[1768966396987,1.41394193,2973.4,2972.7,3.23336178]
[1768966397283,1.41394193,2973.4,2972.7,3.78936178]
[1768966397284,3.05322296,2973.4,2972.7,3.78936178]
[1768966397448,4.03812847,2973.4,2972.7,3.78936178]
[1768966397654,3.09326379,2973.3,2972.7,0.556]